bitfinex-derivatives/quotes_BTCF0:USTF0_20250324
["timestamp","ask_amount","ask_price","bid_price","bid_amount"]
[1742812891380,0.2923936,87775.0,87774.0,0.04092]
[1742812891581,0.2923936,87775.0,87774.0,0.03092]
[1742812892292,0.2923936,87775.0,87774.0,0.1448466]
[1742812892890,0.2923936,87775.0,87774.0,0.00072]
[1742812893290,0.2923936,87775.0,87774.0,0.1246466]
[1742812893291,0.2623936,87775.0,87774.0,0.1246466]
[1742812893789,0.2623936,87775.0,87774.0,0.1598466]
[1742812894999,0.2623936,87775.0,87774.0,0.1698466]
[1742812895296,0.13409989,87775.0,87774.0,0.1698466]
[1742812895496,0.13501989,87775.0,87774.0,0.1698466]
[1742812895887,0.16751989,87775.0,87774.0,0.1698466]
[1742812896396,0.05359459,87775.0,87774.0,0.1698466]
[1742812897095,0.05359459,87775.0,87774.0,0.1598466]
[1742812897293,0.16751989,87775.0,87774.0,0.05292]
[1742812897497,0.16751989,87775.0,87774.0,0.1568466]
[1742812898392,0.28144819,87775.0,87774.0,0.00072]
[1742812898888,0.1139318,87770.0,87769.0,0.00017094]
[1742812899194,0.1146918,87770.0,87769.0,0.00089094]
[1742812899395,0.1782918,87770.0,87769.0,0.11482404]
[1742812899580,0.29222659,87770.0,87769.0,0.11482404]
[1742812899890,0.29222659,87770.0,87769.0,0.00089094]
[1742812900295,0.1139435,87761.0,87756.0,0.0326]
[1742812900492,0.1146635,87761.0,87760.0,0.20236707]
[1742812900895,0.1474635,87761.0,87760.0,0.20236707]
[1742812901096,0.26139829,87761.0,87760.0,0.31631187]
[1742812901307,0.26139829,87761.0,87760.0,0.20236707]
[1742812901600,0.26139829,87761.0,87760.0,0.31631187]
[1742812901799,0.26139829,87761.0,87760.0,0.1246648]
[1742812902097,0.26139829,87761.0,87760.0,0.00072]
[1742812902298,0.1709302,87754.0,87753.0,0.1139539]
[1742812902488,0.1716902,87754.0,87753.0,0.1246739]
[1742812903001,0.28363667,87754.0,87753.0,0.1246739]
[1742812903388,0.31383667,87754.0,87753.0,0.1266739]
[1742812903694,0.31083667,87754.0,87753.0,0.1591739]
[1742812904295,0.31083667,87754.0,87753.0,0.05022]
[1742812905188,0.31083667,87754.0,87753.0,0.1641739]
[1742812909596,0.00076,87754.0,87753.0,0.5249739]
[1742812909795,0.17731314,87762.0,87761.0,0.1139435]
[1742812910101,0.17803314,87762.0,87761.0,0.5155435]
[1742812910399,0.17731314,87762.0,87761.0,0.5155435]
[1742812910597,0.00017094,87762.0,87761.0,0.7555435]
[1742812910800,0.0632,87795.0,87783.0,0.1139149]
[1742812911098,0.0632,87795.0,87794.0,0.1139007]
[1742812911290,0.0632,87795.0,87794.0,0.12877132]
[1742812911492,0.06392,87795.0,87794.0,0.13877132]
[1742812911692,0.1778194,87795.0,87794.0,0.13877132]
[1742812912094,0.1778194,87795.0,87794.0,0.14877132]
[1742812912299,0.06392,87795.0,87794.0,0.14877132]
[1742812912701,0.0632,87795.0,87794.0,0.14877132]
[1742812913000,0.1800994,87795.0,87794.0,0.14877132]
[1742812913191,0.29472175,87795.0,87794.0,0.13312163]
[1742812913598,0.1139046,87791.0,87790.0,0.01386422]
[1742812913893,0.1145846,87791.0,87790.0,0.00068]
[1742812914100,0.1139098,87787.0,87786.0,0.00017094]
[1742812914413,0.1146698,87787.0,87786.0,0.00085094]
[1742812914587,0.1146698,87787.0,87786.0,0.11476204]
[1742812914995,0.1139266,87775.0,87774.0,0.1139255]
[1742812915199,0.11480661,87775.0,87774.0,0.1245255]
[1742812915399,0.17850661,87775.0,87774.0,0.1245255]
[1742812915798,0.29243491,87775.0,87774.0,0.1245255]
[1742812915986,0.29243491,87775.0,87774.0,0.13858581]
[1742812917195,0.29243491,87775.0,87774.0,0.14158581]
[1742812917501,0.29243491,87775.0,87774.0,0.14358581]
[1742812918095,0.32413491,87775.0,87774.0,0.15358581]
[1742812918406,0.32413491,87775.0,87774.0,0.14258581]
[1742812918903,0.32413491,87775.0,87774.0,0.15258581]
[1742812919105,0.32413491,87775.0,87774.0,0.14258581]
[1742812919301,0.0569662,87770.0,87766.0,0.00017094]
[1742812919600,0.1129357,87767.0,87766.0,0.11478794]
[1742812919801,0.1140157,87767.0,87766.0,0.11470794]
[1742812920000,0.227944,87767.0,87766.0,0.13210036]
[1742812920201,0.226944,87767.0,87766.0,0.01816336]
[1742812920503,0.225944,87767.0,87766.0,0.13210036]
[1742812920900,0.225944,87767.0,87766.0,0.02816336]
[1742812921205,0.225944,87767.0,87766.0,0.14210036]
[1742812921394,0.225944,87767.0,87766.0,0.02816336]
[1742812921600,0.225944,87767.0,87766.0,0.02916336]
[1742812922204,0.225944,87767.0,87766.0,0.17390036]
[1742812923820,0.257444,87767.0,87766.0,0.17390036]
[1742812923994,0.225944,87767.0,87766.0,0.17390036]
[1742812924193,0.225944,87767.0,87766.0,0.18390036]
[1742812925405,0.05695,87795.0,87781.0,0.0569587]
[1742812925603,0.11408584,87783.0,87782.0,0.0328]
[1742812925906,0.11484584,87783.0,87782.0,0.1573162]
[1742812926111,0.25938452,87783.0,87782.0,0.1573162]
[1742812926492,0.14846962,87783.0,87782.0,0.1573162]
[1742812927207,0.15246962,87783.0,87782.0,0.1673162]
[1742812928208,0.14946962,87783.0,87782.0,0.1673162]
[1742812928409,0.15346962,87783.0,87782.0,0.1673162]
[1742812932512,0.29788452,87783.0,87782.0,0.1673162]
[1742812933112,0.29788452,87783.0,87782.0,0.1996162]
[1742812933314,0.1139279,87773.0,87772.0,0.3608]
[1742812933508,0.1139279,87773.0,87772.0,0.3814]
[1742812933714,0.1148479,87773.0,87772.0,0.1345292]
[1742812933910,0.1457479,87773.0,87772.0,0.1345292]
[1742812934110,0.25966582,87773.0,87772.0,0.1345292]
[1742812934518,0.1148479,87773.0,87772.0,0.1345292]
[1742812934712,0.1458279,87773.0,87772.0,0.1980292]
[1742812935410,0.1458279,87773.0,87772.0,0.0841]
[1742812935612,0.1467479,87773.0,87772.0,0.0841]
[1742812935806,0.1778479,87773.0,87772.0,0.1980292]
[1742812936207,0.1778479,87773.0,87772.0,0.0841]
[1742812937005,0.1778479,87773.0,87772.0,0.0318]
[1742812937622,0.2917788,87773.0,87772.0,0.0006]
[1742812938107,0.1139331,87769.0,87768.0,0.0305]
[1742812938308,0.1148531,87769.0,87768.0,0.0311]
[1742812938508,0.2113531,87769.0,87768.0,0.0311]
[1742812939018,0.32528919,87769.0,87768.0,0.0311]
[1742812939409,0.32528919,87769.0,87768.0,0.0006]
[1742812939610,0.1139357,87767.0,87766.0,0.00017094]
[1742812939805,0.1149357,87767.0,87766.0,0.00017094]
[1742812940018,0.1777357,87767.0,87766.0,0.00017094]
[1742812940419,0.29167179,87767.0,87766.0,0.00017094]
[1742812941209,0.29167179,87767.0,87766.0,0.00117094]
[1742812942013,0.29167179,87767.0,87766.0,0.03167094]
[1742812944527,0.29167179,87767.0,87766.0,0.03227094]
[1742812944715,0.29167179,87767.0,87766.0,0.03167094]
[1742812945323,0.29167179,87767.0,87766.0,0.00117094]
[1742812945619,0.29167179,87767.0,87737.0,0.11196]
[1742812945620,0.53853609,87767.0,87737.0,0.11196]
[1742812945925,0.1139604,87748.0,87747.0,0.1139613]
[1742812946120,0.11492041,87748.0,87747.0,0.1145613]
[1742812946915,0.14562041,87748.0,87747.0,0.1777613]
[1742812947223,0.14262041,87748.0,87747.0,0.1777613]
[1742812947624,0.11492041,87748.0,87747.0,0.1777613]
[1742812948224,0.11492041,87748.0,87747.0,0.1807613]
[1742812948726,0.3608,87778.0,87747.0,0.57876]
[1742812948923,0.1139351,87770.0,87769.0,0.1708962]
[1742812949125,0.1139351,87770.0,87769.0,0.1714962]
[1742812949324,0.11453511,87770.0,87769.0,0.057566]
[1742812949524,0.11453511,87770.0,87769.0,0.0006]
[1742812949720,0.6832699,87770.0,87769.0,0.0006]
[1742812949916,0.1139383,87765.0,87764.0,0.0655]
[1742812950117,0.1145783,87765.0,87764.0,0.06614]
[1742812950328,0.1772783,87765.0,87764.0,0.06614]
[1742812950517,0.29121309,87765.0,87764.0,0.06614]
[1742812950718,0.1139422,87762.0,87761.0,0.00017094]
[1742812950919,0.1139422,87762.0,87761.0,0.00077094]
[1742812950920,0.47534221,87762.0,87761.0,0.00077094]
[1742812951119,0.50744221,87762.0,87761.0,0.00017094]
[1742812951323,0.53804221,87762.0,87761.0,0.00017094]
[1742812951526,0.65198349,87762.0,87761.0,0.00017094]
[1742812952228,0.1139474,87758.0,87757.0,0.0315]
[1742812952422,0.1146274,87758.0,87757.0,0.0315]
[1742812952623,0.2115274,87758.0,87757.0,0.0315]
[1742812953026,0.32547777,87758.0,87757.0,0.0315]
[1742812953920,0.1139578,87750.0,87749.0,0.00017094]
[1742812954128,0.1145978,87750.0,87749.0,0.00081094]
[1742812954326,0.1461978,87750.0,87749.0,0.00081094]
[1742812954733,0.26014817,87750.0,87749.0,0.00081094]
[1742812954935,0.26014817,87750.0,87749.0,0.00017094]
[1742812955134,0.29184817,87750.0,87749.0,0.00017094]
[1742812955332,0.29184817,87750.0,87749.0,0.00081094]
[1742812958023,0.29184817,87750.0,87749.0,0.00017094]
[1742812958421,0.29184817,87750.0,87749.0,0.00077094]
[1742812960138,0.29184817,87750.0,87749.0,0.11473004]
[1742812960139,0.00064,87750.0,87749.0,0.11473004]
[1742812960339,0.00064,87750.0,87749.0,0.39873004]
[1742812960634,0.1139488,87757.0,87756.0,0.11395]
[1742812960839,0.11454881,87757.0,87756.0,0.11463]
[1742812961140,0.00060001,87757.0,87756.0,0.17943]
[1742812961341,0.00017094,87758.0,87757.0,0.1139487]
[1742812961532,0.00025094,87758.0,87757.0,0.1145487]
[1742812961742,0.11419834,87758.0,87757.0,0.1804487]
[1742812962037,0.11487834,87758.0,87757.0,0.1804487]
[1742812962232,0.00093094,87758.0,87757.0,0.1804487]
[1742812962441,0.00025094,87758.0,87757.0,0.1804487]
[1742812963440,0.11419834,87758.0,87757.0,0.1804487]
[1742812963641,0.11479835,87758.0,87757.0,0.1804487]
[1742812964136,0.14709835,87758.0,87757.0,0.1804487]
[1742812965238,0.00085095,87758.0,87757.0,0.1804487]
[1742812965629,0.11419834,87758.0,87757.0,0.1804487]
[1742812965843,0.11479835,87758.0,87757.0,0.1804487]
[1742812966242,0.11479835,87758.0,87757.0,0.1904487]
[1742812966443,0.00085095,87758.0,87757.0,0.1904487]
[1742812966634,0.00025094,87758.0,87757.0,0.1904487]
[1742812967137,0.00085095,87758.0,87757.0,0.1904487]
[1742812967326,0.11419834,87758.0,87757.0,0.1904487]
[1742812967529,0.00025094,87758.0,87757.0,0.3024087]
[1742812967930,0.11419834,87758.0,87757.0,0.3024087]
[1742812968648,0.11411834,87758.0,87757.0,0.3024087]
[1742812969830,0.11411834,87758.0,87757.0,0.0665]
[1742812970035,0.17965834,87758.0,87757.0,0.0665]
[1742812970344,0.21195834,87758.0,87757.0,0.0665]
[1742812971440,0.21195834,87758.0,87757.0,0.1804487]
[1742812971742,0.21195834,87758.0,87757.0,0.0665]
[1742812972242,0.68670871,87758.0,87757.0,0.0665]
[1742812972545,0.1139578,87750.0,87749.0,0.11213094]
[1742812972746,0.11455781,87750.0,87749.0,0.11273094]
[1742812973042,0.11455781,87750.0,87749.0,0.00077094]
[1742812973241,0.22850818,87750.0,87749.0,0.00077094]
[1742812973847,0.29060818,87750.0,87749.0,0.00077094]
[1742812976247,0.65140818,87750.0,87749.0,0.00077094]
[1742812980548,0.65140818,87750.0,87749.0,0.06267094]
[1742812981044,0.65140818,87750.0,87749.0,0.03107094]
[1742812986038,0.1139656,87744.0,87743.0,0.0181493]
[1742812986238,0.2267256,87744.0,87743.0,0.00105587]
[1742812986450,0.1139695,87741.0,87739.0,0.0322]
[1742812986642,0.1139812,87732.0,87731.0,0.033]
[1742812986845,0.11494121,87732.0,87731.0,0.0328]
[1742812987039,0.56714121,87732.0,87731.0,0.0006]
[1742812987245,0.68110976,87732.0,87731.0,0.0006]
[1742812987641,0.68110976,87732.0,87729.0,0.20160154]
[1742812987642,0.1139838,87730.0,87729.0,0.20160154]
[1742812987847,0.2269438,87730.0,87729.0,0.20220154]
[1742812988049,0.2891438,87730.0,87729.0,0.15230154]
[1742812988249,0.40312794,87730.0,87729.0,0.15230154]
[1742812988653,0.1139916,87724.0,87720.0,0.0084173]
[1742812988954,0.4759516,87724.0,87723.0,0.27522976]
[1742812989457,0.114002,87716.0,87715.0,0.34307353]
[1742812989654,0.588082,87716.0,87715.0,0.34367353]
[1742812990159,0.70207653,87716.0,87715.0,0.0006]
[1742812990455,0.70207653,87716.0,87707.0,0.0301]
[1742812990456,0.1140124,87708.0,87707.0,0.00017094]
[1742812990654,0.4761324,87708.0,87707.0,0.03217094]
[1742812991049,0.4761324,87708.0,87707.0,0.14618464]
[1742812991247,0.65433733,87708.0,87707.0,0.14618464]
[1742812991842,0.65433733,87708.0,87707.0,0.00077094]
[1742812992055,0.65433733,87708.0,87707.0,0.00017094]
[1742812992247,0.65433733,87708.0,87707.0,0.11478464]
[1742812992443,0.65433733,87708.0,87707.0,0.17868464]
[1742812992647,0.76633733,87708.0,87707.0,0.06467094]
[1742812993356,0.76633733,87708.0,87707.0,0.07332392]
[1742812994061,0.1140215,87701.0,87700.0,0.1]
[1742812994246,0.22758151,87701.0,87700.0,0.1]
[1742812994849,0.40269684,87701.0,87700.0,0.1]
[1742812995049,0.40269684,87701.0,87698.0,0.0331]
[1742812995050,0.0570168,87692.0,87688.0,0.0302]
[1742812995252,0.1140358,87690.0,87689.0,0.0331]
[1742812995554,0.1140358,87690.0,87656.0,0.86548]
[1742812995555,0.1140462,87682.0,87681.0,0.00011414]
[1742812995750,0.2275662,87682.0,87681.0,0.00011414]
[1742812996366,0.2900662,87682.0,87681.0,0.00011414]
[1742812996663,0.40410493,87682.0,87681.0,0.00011414]
[1742812997055,0.40610493,87682.0,87681.0,0.00011414]
[1742812998660,0.00352,87682.0,87681.0,0.36416164]
[1742812998881,0.001,87682.0,87681.0,0.36416164]
[1742812999055,0.001,87682.0,87681.0,0.46056164]
[1742812999667,8e-05,87683.0,87682.0,0.1140462]
[1742812999969,8e-05,87683.0,87682.0,0.3940462]
[1742813000264,8e-05,87683.0,87682.0,0.4587462]
[1742813000664,0.1141249,87683.0,87682.0,0.28]
[1742813000863,0.1140462,87682.0,87681.0,0.14606164]
[1742813001167,0.1481662,87682.0,87681.0,0.17886164]
[1742813001969,0.1481662,87682.0,87681.0,0.06481414]
[1742813002268,0.29481534,87682.0,87681.0,0.06481414]
[1742813002656,0.29481534,87682.0,87681.0,0.17886164]
[1742813003069,0.29481534,87682.0,87681.0,0.06481414]
[1742813003457,0.26221534,87682.0,87681.0,0.17886164]
[1742813004262,0.22961534,87682.0,87681.0,0.17886164]
[1742813004472,0.1155662,87682.0,87681.0,0.40886164]
[1742813004658,0.1140462,87682.0,87681.0,0.40886164]
[1742813004858,8e-05,87683.0,87682.0,0.1140462]
[1742813005060,0.1141249,87683.0,87682.0,0.4155462]
[1742813005260,0.22977404,87683.0,87682.0,0.4759462]
[1742813010259,0.0570126,87699.0,87697.0,0.1140267]
[1742813010459,0.11531675,87698.0,87697.0,0.2077267]
[1742813010675,0.11523675,87698.0,87697.0,0.0937]
[1742813010858,0.17943675,87698.0,87697.0,0.0937]
[1742813011171,0.1140436,87684.0,87683.0,0.1140444]
[1742813011361,0.11516361,87684.0,87683.0,0.1246444]
[1742813011558,0.14806361,87684.0,87683.0,0.1246444]
[1742813011762,0.11419644,87698.0,87697.0,0.1140267]
[1742813011970,0.11491644,87698.0,87697.0,0.1140267]
[1742813012170,0.11691644,87698.0,87697.0,0.1777267]
[1742813012670,0.23096298,87698.0,87697.0,0.1777267]
[1742813013173,0.23096298,87698.0,87697.0,0.0637]
[1742813013371,0.26196298,87698.0,87697.0,0.0631]
[1742813013575,0.26396298,87698.0,87697.0,0.1771267]
[1742813013770,0.26396298,87698.0,87697.0,0.1777667]
[1742813015580,0.26396298,87698.0,87697.0,0.2095667]
[1742813016073,0.26396298,87698.0,87697.0,0.03244]
[1742813016272,0.26396298,87698.0,87688.0,0.3608]
[1742813016273,0.1140306,87694.0,87693.0,0.0333]
[1742813016474,0.1147506,87694.0,87693.0,0.0339]
[1742813016663,0.1777506,87694.0,87693.0,0.0339]
[1742813016863,0.1777506,87694.0,87693.0,0.1479319]
[1742813017063,0.29178413,87694.0,87693.0,0.0649]
[1742813017667,0.65358413,87694.0,87693.0,0.0316]
[1742813018066,0.65458413,87694.0,87693.0,0.0316]
[1742813018261,0.65458413,87694.0,87693.0,0.031]
[1742813020278,0.1140358,87690.0,87689.0,0.0333]
[1742813020479,0.2268758,87690.0,87689.0,0.1473371]
[1742813020677,0.2589758,87690.0,87689.0,0.1480971]
[1742813020874,0.2589758,87690.0,87689.0,0.03406]
[1742813021079,0.37301453,87690.0,87689.0,0.03406]
[1742813021574,0.40431453,87690.0,87689.0,0.03406]
[1742813021767,0.40431453,87690.0,87689.0,0.0333]
[1742813022177,0.26097453,87690.0,87689.0,0.0333]
[1742813022378,0.26097453,87690.0,87689.0,0.1479371]
[1742813022678,0.26097453,87690.0,87689.0,0.1798371]
[1742813022881,0.22887453,87690.0,87689.0,0.1798371]
[1742813025478,0.0008,87690.0,87689.0,0.1798371]
[1742813025688,0.1140358,87690.0,87689.0,0.1328185]
[1742813025873,0.1147958,87690.0,87689.0,0.1328185]
[1742813026884,0.22883453,87690.0,87689.0,0.0758]
[1742813027083,0.26153453,87690.0,87689.0,0.1898371]
[1742813027286,0.29193453,87690.0,87689.0,0.1898371]
[1742813028182,0.22883453,87690.0,87689.0,0.1898371]
[1742813028578,0.26183453,87690.0,87689.0,0.1898371]
[1742813029485,0.26183453,87690.0,87689.0,0.0758]
[1742813029783,0.26183453,87690.0,87689.0,0.1898371]
[1742813029985,0.29243453,87690.0,87689.0,0.1898371]
[1742813030883,0.29243453,87690.0,87689.0,0.0758]
[1742813031075,0.65323453,87690.0,87689.0,0.0758]
[1742813031273,0.29243453,87690.0,87689.0,0.0758]
[1742813031479,0.29243453,87690.0,87689.0,0.1898371]
[1742813031789,0.29243453,87690.0,87689.0,0.0758]
[1742813032289,0.29243453,87690.0,87689.0,0.0752]
[1742813032479,0.29243453,87690.0,87689.0,0.076]
[1742813033291,0.29243453,87690.0,87689.0,0.1900371]
[1742813033593,0.29243453,87690.0,87689.0,0.076]
[1742813034090,0.29243453,87690.0,87689.0,0.0752]
[1742813034692,0.29243453,87690.0,87689.0,0.0758]
[1742813036692,0.29243453,87690.0,87689.0,0.0752]
[1742813037088,0.29243453,87690.0,87689.0,0.07592]
[1742813038889,0.29243453,87690.0,87689.0,0.06592]
[1742813040289,0.29243453,87690.0,87689.0,0.0652]
[1742813040494,0.29243453,87690.0,87689.0,0.0658]
[1742813041396,0.29243453,87690.0,87689.0,0.0652]
[1742813042390,0.29243453,87690.0,87689.0,0.06588]
[1742813045395,0.29243453,87690.0,87689.0,0.0652]
[1742813046396,0.1140462,87682.0,87681.0,0.00011414]
[1742813046599,0.4756062,87682.0,87681.0,0.00079414]
[1742813046798,0.5380062,87682.0,87681.0,0.00011414]
[1742813047101,0.65205534,87682.0,87681.0,0.00011414]
[1742813049496,0.65205534,87682.0,87681.0,0.03241414]
[1742813054705,0.65205534,87682.0,87681.0,0.00011414]
[1742813063611,0.76405534,87682.0,87681.0,0.00011414]
[1742813063810,0.65205534,87682.0,87681.0,0.00011414]
[1742813064015,0.40325534,87682.0,87681.0,0.06051414]
[1742813064215,0.40325534,87682.0,87681.0,0.06111414]
[1742813064510,0.40325534,87682.0,87681.0,0.06051414]
[1742813064716,0.40325534,87682.0,87681.0,0.06111414]
[1742813066908,0.40325534,87682.0,87681.0,0.06051414]
[1742813067109,0.29125534,87682.0,87681.0,0.06111414]
[1742813067912,0.29125534,87682.0,87681.0,0.06051414]
[1742813068310,0.29125534,87682.0,87681.0,0.06111414]
[1742813068915,0.29125534,87682.0,87681.0,0.06051414]
[1742813069720,0.29125534,87682.0,87681.0,0.06111414]
[1742813070018,0.29125534,87682.0,87681.0,0.06115414]
[1742813070415,0.29125534,87682.0,87681.0,0.06051414]
[1742813070615,0.29125534,87682.0,87681.0,0.06111414]
[1742813070817,0.22885534,87682.0,87681.0,0.17456164]
[1742813071016,0.22885534,87682.0,87681.0,0.17516164]
[1742813074725,0.22885534,87682.0,87681.0,0.06111414]
[1742813075028,0.29295534,87682.0,87681.0,0.06051414]
[1742813075228,0.29295534,87682.0,87681.0,0.06111414]
[1742813075527,0.29295534,87682.0,87681.0,0.06051414]
[1742813076022,0.29295534,87682.0,87681.0,0.17456164]
[1742813076417,0.25995534,87682.0,87681.0,0.17516164]
[1742813076817,0.29315534,87682.0,87681.0,0.17516164]
[1742813088147,0.00076,87682.0,87681.0,0.43516164]
[1742813088840,0.1148062,87682.0,87681.0,0.43516164]
[1742813089034,0.00076,87682.0,87681.0,0.79596164]
[1742813089237,0.2040443,87687.0,87686.0,0.114041]
[1742813089447,0.3180847,87687.0,87686.0,0.394721]
[1742813089647,0.3187647,87687.0,87686.0,0.394721]
[1742813089835,0.3187647,87687.0,87686.0,0.456421]
[1742813090143,0.318764,87687.0,87686.0,0.456421]
[1742813090343,0.319764,87687.0,87686.0,0.456421]
[1742813091142,0.320764,87687.0,87686.0,0.456421]
[1742813091748,0.1167197,87687.0,87686.0,0.456421]
[1742813091945,0.00268,87687.0,87686.0,0.456421]
[1742813092245,0.1167197,87687.0,87686.0,0.456421]
[1742813094247,0.00268,87687.0,87686.0,0.456421]
[1742813094434,0.002,87687.0,87686.0,0.456421]
[1742813094630,0.00268,87687.0,87686.0,0.456421]
[1742813094835,0.00272,87687.0,87686.0,0.456421]
[1742813095041,0.00272,87687.0,87686.0,0.568381]
[1742813095443,0.00272,87687.0,87686.0,0.808381]
[1742813095631,0.20421534,87698.0,87687.0,0.0570194]
[1742813095837,0.20421534,87698.0,87697.0,0.1140267]
[1742813096143,0.20489534,87698.0,87697.0,0.3947067]
[1742813096344,8e-05,87704.0,87703.0,0.1140189]
[1742813096643,0.00088001,87704.0,87703.0,0.4768589]
[1742813097041,0.00088001,87704.0,87703.0,0.5404589]
[1742813097741,0.00388001,87704.0,87703.0,0.5404589]
[1742813097942,0.177211,87710.0,87703.0,0.5404589]
[1742813097943,8e-05,87705.0,87704.0,0.1140176]
[1742813098249,0.23886168,87711.0,87710.0,0.1140098]
[1742813098548,0.03384001,87711.0,87710.0,0.4971298]
[1742813098746,0.0654,87711.0,87710.0,0.4971298]
[1742813098947,0.06664001,87711.0,87710.0,0.4971298]
[1742813099134,0.06664001,87711.0,87710.0,0.5614298]
[1742813099538,0.18064851,87711.0,87710.0,0.5614298]
[1742813100052,0.18564851,87711.0,87710.0,0.5614298]
[1742813100245,0.00624001,87711.0,87710.0,0.5614298]
[1742813100450,0.005,87711.0,87710.0,0.8014298]
[1742813100650,0.0004,87720.0,87719.0,0.1139981]
[1742813100845,0.1150768,87720.0,87719.0,0.1239981]
[1742813101048,0.1150768,87720.0,87719.0,0.1252381]
[1742813101352,0.1150768,87720.0,87719.0,0.2179381]
[1742813101552,0.00108,87720.0,87719.0,0.2179381]
[1742813101744,0.00108,87720.0,87719.0,0.3298981]
[1742813101940,0.00108,87720.0,87719.0,0.5698981]
[1742813102142,0.00608,87720.0,87719.0,0.5698981]
[1742813102342,0.1140722,87724.0,87723.0,0.1139929]
[1742813102544,0.1153522,87724.0,87723.0,0.3853529]
[1742813102936,0.22935193,87724.0,87723.0,0.2797607]
[1742813103147,0.1140085,87712.0,87711.0,0.1140082]
[1742813103358,0.11496851,87712.0,87711.0,0.1249682]
[1742813103651,0.20946851,87712.0,87711.0,0.1249682]
[1742813103961,0.32346304,87712.0,87711.0,0.1149682]
[1742813104347,0.00096001,87712.0,87711.0,0.38340892]
[1742813104556,0.36088,87726.0,87711.0,0.43020072]
[1742813104557,0.005,87720.0,87711.0,0.43020072]
[1742813104742,0.00624001,87720.0,87719.0,0.4747981]
[1742813104938,0.005,87720.0,87719.0,0.8679581]
[1742813105144,0.118992,87724.0,87723.0,0.1139929]
[1742813105440,0.11959201,87724.0,87723.0,0.3652329]
[1742813105641,0.118992,87724.0,87723.0,0.3652329]
[1742813105844,0.115272,87724.0,87723.0,0.3652329]
[1742813106045,0.115272,87724.0,87723.0,0.4268329]
[1742813106242,0.113992,87724.0,87723.0,0.4268329]
[1742813106444,0.00060001,87724.0,87723.0,0.4268329]
[1742813106645,0.1141503,87725.0,87724.0,0.1139916]
[1742813106852,0.1141503,87725.0,87724.0,0.1152316]
[1742813107051,0.1154303,87725.0,87724.0,0.1765316]
[1742813107449,0.1154303,87725.0,87724.0,0.08254]
[1742813107646,0.26042354,87725.0,87724.0,0.00124]
[1742813109256,0.26442354,87725.0,87724.0,0.00124]
[1742813109456,0.26442354,87725.0,87724.0,0.1152316]
[1742813110159,0.26842354,87725.0,87724.0,0.1152316]
[1742813111150,0.29852354,87725.0,87724.0,0.1152316]
[1742813111361,0.29852354,87725.0,87724.0,0.1455316]
[1742813113560,0.29852354,87725.0,87724.0,0.1152316]
[1742813115659,0.0570002,87718.0,87713.0,0.1710015]
[1742813115866,0.1140072,87714.0,87713.0,0.1810015]
[1742813116162,0.11488721,87714.0,87713.0,0.1818815]
[1742813116345,0.20998721,87714.0,87713.0,0.1818815]
[1742813116549,0.20998721,87714.0,87713.0,0.2437815]
[1742813117559,0.21098721,87714.0,87713.0,0.2437815]
[1742813117952,0.21298721,87714.0,87713.0,0.2437815]
[1742813118152,0.21298721,87714.0,87713.0,0.07278]
[1742813118464,0.21298721,87714.0,87711.0,0.00864573]
[1742813118465,0.1140072,87712.0,87711.0,0.00864573]
[1742813118662,0.47576721,87712.0,87711.0,0.00088]
[1742813118974,0.1140111,87709.0,87708.0,0.0325]
[1742813119153,0.11489111,87709.0,87708.0,0.03338]
[1742813119353,0.17879111,87709.0,87708.0,0.0325]
[1742813119863,0.29280124,87709.0,87708.0,0.0325]
[1742813120065,0.29280124,87709.0,87708.0,0.03338]
[1742813120661,0.29380124,87709.0,87708.0,0.03338]
[1742813120850,0.29480124,87709.0,87708.0,0.1473924]
[1742813121049,0.29480124,87709.0,87708.0,0.1573924]
[1742813121655,0.29480124,87709.0,87708.0,0.04338]
[1742813122071,0.29480124,87709.0,87708.0,0.05205026]
[1742813122562,0.29580124,87709.0,87708.0,0.05205026]
[1742813124655,0.29580124,87709.0,87708.0,0.01955026]
[1742813124965,0.29580124,87709.0,87708.0,0.08955026]
[1742813125550,0.18179014,87709.0,87708.0,0.20356266]
[1742813125755,0.29580124,87709.0,87708.0,0.20356266]
[1742813125960,0.29580124,87709.0,87708.0,0.08955026]
[1742813127565,0.29580124,87709.0,87708.0,0.20356266]
[1742813127868,0.29580124,87709.0,87708.0,0.12235026]
[1742813128167,0.29580124,87709.0,87708.0,0.23636266]
[1742813128670,0.29580124,87709.0,87708.0,0.12235026]
[1742813128969,0.29580124,87709.0,87708.0,0.08867026]
[1742813129158,0.29580124,87709.0,87708.0,0.08955026]
[1742813129751,0.29580124,87709.0,87708.0,0.08867026]
[1742813129959,0.29580124,87709.0,87708.0,0.08959026]
[1742813130567,0.29580124,87709.0,87708.0,0.20360266]
[1742813131664,0.29580124,87709.0,87708.0,0.00959026]
[1742813132060,0.46650708,87709.0,87708.0,0.00867026]
[1742813132369,0.114015,87706.0,87705.0,0.0570078]
[1742813132569,0.11489501,87706.0,87705.0,0.0578878]
[1742813132765,0.17929501,87706.0,87705.0,0.0570078]
[1742813132967,0.17929501,87706.0,87705.0,0.0901078]
[1742813133265,0.29330904,87706.0,87705.0,0.0910678]
[1742813133983,0.29430904,87706.0,87705.0,0.0910678]
[1742813134368,0.29430904,87706.0,87705.0,0.0901078]
[1742813134569,0.29430904,87706.0,87705.0,0.0910678]
[1742813135470,0.29430904,87706.0,87705.0,0.1212678]
[1742813135671,0.29330904,87706.0,87705.0,0.1212678]
[1742813135874,0.29430904,87706.0,87705.0,0.1212678]
[1742813136463,0.29430904,87706.0,87705.0,0.06426]
[1742813136666,0.29530904,87706.0,87705.0,0.0633]
[1742813136866,0.29530904,87706.0,87705.0,0.06418]
[1742813137270,0.29530904,87706.0,87705.0,0.0633]
[1742813138969,0.29530904,87706.0,87705.0,0.06418]
[1742813139678,0.29530904,87706.0,87705.0,0.1781963]
[1742813139980,0.26300904,87706.0,87705.0,0.1781963]
[1742813140278,0.11689501,87706.0,87705.0,0.4581963]
[1742813141571,0.20411079,87712.0,87711.0,0.1140085]
[1742813141763,0.2053108,87712.0,87711.0,0.9659285]
[1742813141977,0.20411079,87712.0,87711.0,0.9659285]
[1742813142177,8e-05,87717.0,87716.0,0.114002]
[1742813142480,8e-05,87717.0,87716.0,0.367722]
[1742813142680,0.056999,87719.0,87718.0,0.1139994]
[1742813142883,0.1151581,87719.0,87718.0,0.3851594]
[1742813143072,0.00116,87719.0,87718.0,0.6554594]
[1742813143274,0.0569945,87726.0,87725.0,0.0569951]
[1742813143577,0.1725035,87726.0,87725.0,0.0584751]
[1742813143874,0.2029035,87726.0,87725.0,0.0584751]
[1742813144082,0.2029035,87726.0,87725.0,0.0887751]
[1742813144281,0.2338035,87726.0,87725.0,0.0887751]
[1742813144780,0.2338035,87726.0,87725.0,0.1212751]
[1742813145772,0.2378035,87726.0,87725.0,0.1212751]
[1742813145971,0.2428035,87726.0,87725.0,0.1212751]